fUSD/lending_fUSD_20250211
["ID","MTS","AMOUNT","RATE_DAILY","PERIOD"]
[352740415,1739283117367,-2558.39,0.00012602,2]
[352740416,1739283117376,-500.0,0.00012602,2]
[352740417,1739283117386,-620.78,0.00012602,2]
[352740418,1739283117396,-2007.68,0.00012602,2]
[352740419,1739283117405,-2648.76,0.00012602,2]
[352740420,1739283117414,-2171.75,0.00012602,2]
[352740421,1739283117423,-2434.45,0.00012602,2]
[352740422,1739283117432,-731.57,0.00012602,2]
[352740423,1739283117442,-2583.49,0.00012602,2]
[352740424,1739283117452,-2031.5,0.00012602,2]
[352740425,1739283117462,-198.14,0.00012602,2]
[352740426,1739283117472,-3062.38,0.00012602,2]
[352740427,1739283117481,-1845.16,0.00012602,2]
[352740428,1739283117491,-3061.99,0.00012602,2]
[352740429,1739283117501,-2068.15,0.00012602,2]
[352740430,1739283117510,-1009.34,0.00012602,2]
[352740431,1739283117520,-2900.54,0.00012602,2]
[352740432,1739283117530,-2626.43,0.00012602,2]
[352740433,1739283117540,-500.0,0.00012602,2]
[352740434,1739283117549,-2213.47,0.00012602,2]
[352740435,1739283117559,-1085.29,0.00012602,2]
[352740436,1739283117568,-2309.34,0.00012602,2]
[352740437,1739283117577,-7282.99,0.00012602,2]
[352740438,1739283117589,-1952.41,0.00012602,2]
[352740439,1739283117598,-701.48,0.00012602,2]
[352740440,1739283117608,-500.0,0.00012602,2]
[352740441,1739283117617,-1931.94,0.00012602,2]
[352740442,1739283117629,-500.0,0.00012602,2]
[352740443,1739283117640,-5326.26,0.00012602,2]
[352740444,1739283117650,-500.0,0.00012602,2]
[352740445,1739283117660,-3327.15,0.00012602,2]
[352740446,1739283117671,-1259.82,0.00012602,2]
[352740447,1739283117680,-500.0,0.00012602,2]
[352740448,1739283117690,-667.96,0.00012602,2]
[352740449,1739283117700,-3450.17,0.00012602,2]
[352740450,1739283117709,-500.0,0.00012602,2]
[352740451,1739283117719,-500.0,0.00012602,2]
[352740452,1739283117729,-1704.66,0.00012602,2]
[352740453,1739283117738,-500.0,0.00012602,2]
[352740454,1739283117748,-500.0,0.00012602,2]
[352740455,1739283117758,-2127.38,0.00012602,2]
[352740456,1739283117767,-416.62,0.00012602,2]
[352740457,1739283117777,-1476.79,0.00012602,2]
[352740458,1739283117786,-889.84,0.00012602,2]
[352740459,1739283117796,-1839.16,0.00012602,2]
[352740460,1739283117806,-2565.16,0.00012602,2]
[352740461,1739283117815,-2467.78,0.00012602,2]
[352740462,1739283117825,-500.0,0.00012602,2]
[352740463,1739283117836,-1657.8,0.00012602,2]
[352740464,1739283117846,-683.49,0.00012602,2]
[352740465,1739283117856,-500.0,0.00012602,2]
[352740466,1739283117865,-1036.17,0.00012602,2]
[352740467,1739283117875,-2953.99,0.00012602,2]
[352740468,1739283117885,-500.0,0.00012602,2]
[352740469,1739283117895,-2380.39,0.00012602,2]
[352740470,1739283117905,-1433.77,0.00012602,2]
[352740471,1739283117916,-1071.62,0.00012602,2]
[352740472,1739283117926,-1274.15,0.00012602,2]
[352740473,1739283117936,-500.0,0.00012602,2]
[352740474,1739283117946,-1027.27,0.00012602,2]
[352740475,1739283117955,-855.01,0.00012602,2]
[352740476,1739283117965,-1213.71,0.00012602,2]
[352740477,1739283117974,-2875.82,0.00012602,2]
[352740478,1739283117984,-727.11,0.00012602,2]
[352740479,1739283117994,-425.6682552,0.00012602,2]
[352740480,1739283118004,-713.14,0.00012602,2]
[352740481,1739283118014,-2037.92,0.00012602,2]
[352740482,1739283118024,-2384.33,0.00012602,2]
[352740483,1739283118034,-10658.24,0.00012603,2]
[352740484,1739283118044,-544.41,0.00012664,2]
[352740485,1739283118054,-152.0,0.00012688,5]
[352740486,1739283118064,-576.7436931,0.00012696,2]
[352740487,1739283118074,-524.64,0.00012732,2]
[352740488,1739283118083,-1114.15,0.00012733,2]
[352740489,1739283118097,-1907.79,0.00012733,2]
[352740490,1739283118107,-500.0,0.00012733,2]
[352740491,1739283118117,-2042.7,0.00012733,2]
[352740492,1739283118127,-2608.79,0.00012733,2]
[352740493,1739283118137,-500.0,0.00012739,2]
[352740494,1739283118148,-194.62,0.00012739,2]
[352740495,1739283118157,-500.0,0.00012739,2]
[352740496,1739283118167,-545.31,0.00012739,2]
[352740497,1739283118176,-623.89,0.00012739,2]
[352740498,1739283118186,-2289.514115,0.00012739,2]
[352740499,1739283118195,-912.071354,0.00012739,2]
[352740500,1739283118204,-562.39,0.00012739,2]
[352740501,1739283118214,-1335.42,0.00012739,2]
[352740502,1739283118224,-563.5,0.00012739,2]
[352740503,1739283118234,-500.0,0.00012739,2]
[352740504,1739283118243,-500.0,0.00012739,2]
[352740505,1739283118253,-500.0,0.00012739,2]
[352740506,1739283118263,-1026.73,0.00012739,2]
[352740507,1739283118272,-500.0,0.00012739,2]
[352740508,1739283118281,-1291.73,0.00012739,2]
[352740509,1739283118292,-500.0,0.00012739,2]
[352740510,1739283118302,-1006.21,0.00012739,2]
[352740511,1739283118312,-500.0,0.00012739,2]
[352740512,1739283118322,-654.08,0.00012739,2]
[352740513,1739283118332,-500.0,0.00012739,2]
[352740514,1739283118342,-500.0,0.00012739,2]
[352740515,1739283118352,-500.0,0.00012739,2]
[352740516,1739283118362,-648.91,0.00012739,2]
[352740517,1739283118372,-829.91,0.00012739,2]
[352740518,1739283118382,-1283.05,0.00012739,2]
[352740519,1739283118392,-627.22,0.00012739,2]
[352740520,1739283118402,-784.62,0.00012739,2]
[352740521,1739283118412,-500.0,0.00012739,2]
[352740522,1739283118423,-500.0,0.00012739,2]
[352740523,1739283118432,-1049.93,0.00012739,2]
[352740524,1739283118442,-500.0,0.00012739,2]
[352740525,1739283118452,-656.24,0.00012739,2]
[352740526,1739283118462,-500.0,0.00012739,2]
[352740527,1739283118472,-717.49,0.00012739,2]
[352740528,1739283118482,-750.73,0.00012739,2]
[352740529,1739283118492,-899.58,0.00012739,2]
[352740530,1739283118502,-500.0,0.00012739,2]
[352740531,1739283118514,-951.35,0.00012739,2]
[352740532,1739283118524,-500.0,0.00012739,2]
[352740533,1739283118534,-1059.29,0.00012739,2]
[352740534,1739283118544,-1079.43,0.00012739,2]
[352740535,1739283118554,-771.17,0.00012739,2]
[352740536,1739283118564,-500.0,0.00012739,2]
[352740537,1739283118574,-621.59,0.00012739,2]
[352740538,1739283118584,-500.0,0.00012739,2]
[352740539,1739283118595,-500.0,0.00012739,2]
[352740540,1739283118606,-772.38,0.00012739,2]
[352740541,1739283118616,-637.38,0.00012739,2]
[352740542,1739283118626,-564.18,0.00012739,2]
[352740543,1739283118640,-500.0,0.00012739,2]
[352740544,1739283118651,-562.5,0.00012739,2]
[352740545,1739283118662,-726.26,0.00012739,2]
[352740546,1739283118672,-500.0,0.00012739,2]
[352740547,1739283118683,-500.0,0.00012739,2]
[352740548,1739283118693,-657.71,0.00012739,2]
[352740549,1739283118703,-545.49,0.00012739,2]
[352740550,1739283118715,-947.55,0.00012739,2]
[352740551,1739283118726,-500.0,0.00012739,2]
[352740552,1739283118736,-500.0,0.00012739,2]
[352740553,1739283118746,-500.0,0.00012739,2]
[352740554,1739283118756,-500.0,0.00012739,2]
[352740555,1739283118766,-791.02,0.00012739,2]
[352740556,1739283118776,-594.78,0.00012739,2]
[352740557,1739283118786,-899.13,0.00012739,2]
[352740558,1739283118796,-723.56,0.00012739,2]
[352740559,1739283118807,-623.3,0.00012739,2]
[352740560,1739283118816,-500.0,0.00012739,2]
[352740561,1739283118827,-602.04,0.00012739,2]
[352740562,1739283118837,-634.43,0.00012739,2]
[352740563,1739283118848,-500.0,0.00012739,2]
[352740564,1739283118858,-689.47,0.00012739,2]
[352740565,1739283118868,-500.0,0.00012739,2]
[352740566,1739283118879,-500.0,0.00012739,2]
[352740567,1739283118889,-500.0,0.00012739,2]
[352740568,1739283118899,-500.0,0.00012739,2]
[352740569,1739283118909,-999.07,0.00012739,2]
[352740570,1739283118920,-961.83,0.00012739,2]
[352740571,1739283118930,-932.98,0.00012739,2]
[352740572,1739283118940,-500.0,0.00012739,2]
[352740573,1739283118950,-662.81,0.00012739,2]
[352740574,1739283118961,-541.66,0.00012739,2]
[352740575,1739283118971,-722.67,0.00012739,2]
[352740576,1739283118981,-500.0,0.00012739,2]
[352740577,1739283118992,-500.0,0.00012739,2]
[352740578,1739283119002,-500.0,0.00012739,2]
[352740579,1739283119012,-500.0,0.00012739,2]
[352740580,1739283119022,-1030.45,0.00012739,2]
[352740581,1739283119032,-835.87,0.00012739,2]
[352740582,1739283119043,-750.85,0.00012739,2]
[352740583,1739283119053,-500.0,0.00012739,2]
[352740584,1739283119063,-500.0,0.00012739,2]
[352740585,1739283119073,-500.0,0.00012739,2]
[352740586,1739283119083,-500.0,0.00012739,2]
[352740587,1739283119094,-500.0,0.00012739,2]
[352740588,1739283119292,-1038.04,0.00012739,2]
[352740589,1739283119302,-655.85,0.00012739,2]
[352740590,1739283119312,-529.36874113,0.00012739,2]
[352740591,1739283119322,-626.7,0.00012739,2]
[352740592,1739283119331,-500.0,0.00012739,2]
[352740593,1739283119341,-500.0,0.00012739,2]
[352740594,1739283119350,-581.18,0.00012739,2]
[352740595,1739283119360,-650.34,0.00012739,2]
[352740596,1739283119369,-500.0,0.00012739,2]
[352740597,1739283119379,-557.62,0.00012739,2]
[352740598,1739283119388,-552.27,0.00012739,2]
[352740599,1739283119398,-1181.79,0.00012739,2]
[352740600,1739283119407,-982.11,0.00012739,2]
[352740601,1739283119417,-637.32,0.00012739,2]
[352740602,1739283119427,-500.0,0.00012739,2]
[352740603,1739283119436,-500.0,0.00012739,2]
[352740604,1739283119446,-326.54731939,0.00012739,2]
[352740605,1739283119455,-621.63,0.00012739,2]
[352740606,1739283119464,-720.74,0.00012739,2]
[352740607,1739283119474,-500.0,0.00012739,2]
[352740608,1739283119483,-756.12,0.00012739,2]
[352740609,1739283119493,-540.21,0.00012739,2]
[352740610,1739283119503,-1099.61,0.00012739,2]
[352740611,1739283119512,-543.05,0.00012739,2]
[352740612,1739283119521,-735.96,0.00012739,2]
[352740613,1739283119531,-1136.7,0.00012739,2]
[352740614,1739283119540,-500.0,0.00012739,2]
[352740615,1739283119549,-500.0,0.00012739,2]
[352740616,1739283119558,-875.16,0.00012739,2]
[352740617,1739283119568,-580.72,0.00012739,2]
[352740618,1739283119578,-500.0,0.00012739,2]
[352740619,1739283119587,-1187.47,0.00012739,2]
[352740620,1739283119598,-1053.93,0.00012739,2]
[352740621,1739283119607,-635.88,0.00012739,2]
[352740622,1739283119617,-683.09,0.00012739,2]
[352740623,1739283119626,-1017.56,0.00012739,2]
[352740624,1739283119638,-500.0,0.00012739,2]
[352740625,1739283119648,-1174.81,0.00012739,2]
[352740626,1739283119658,-215.96270578,0.00012739,2]
[352740627,1739283119667,-641.21,0.00012739,2]
[352740628,1739283119678,-515.4,0.00012739,2]
[352740629,1739283119687,-811.4,0.00012739,2]
[352740630,1739283119697,-500.0,0.00012739,2]
[352740631,1739283119706,-2279.79,0.00012739,2]
[352740632,1739283119717,-500.0,0.00012739,2]
[352740633,1739283119726,-1026.36,0.00012739,2]
[352740634,1739283119736,-544.63,0.00012739,2]
[352740635,1739283119745,-1181.86,0.00012739,2]
[352740636,1739283119754,-678.67,0.00012739,2]
[352740637,1739283119764,-1235.55,0.00012739,2]
[352740638,1739283119773,-500.0,0.00012739,2]
[352740639,1739283119783,-2015.94,0.00012739,2]
[352740640,1739283119792,-638.72,0.00012739,2]
[352740641,1739283119801,-500.0,0.00012739,2]
[352740642,1739283119811,-884.07,0.00012739,2]
[352740643,1739283119820,-1344.05,0.00012739,2]
[352740644,1739283119829,-500.0,0.00012739,2]
[352740645,1739283119840,-500.0,0.00012739,2]
[352740646,1739283119849,-1667.76,0.00012739,2]
[352740647,1739283119859,-515.7,0.00012739,2]
[352740648,1739283119868,-500.0,0.00012739,2]
[352740649,1739283119878,-522.2,0.00012739,2]
[352740650,1739283119888,-1113.72,0.00012739,2]
[352740651,1739283119898,-500.0,0.00012739,2]
[352740652,1739283119908,-757.59,0.00012739,2]
[352740653,1739283119919,-1179.03,0.00012739,2]
[352740654,1739283119928,-1282.85,0.00012739,2]
[352740655,1739283119938,-808.33,0.00012739,2]
[352740656,1739283119947,-1795.37,0.00012739,2]
[352740657,1739283119957,-1850.76,0.00012739,2]
[352740658,1739283119967,-603.62,0.00012739,2]
[352740659,1739283119976,-429.26,0.00012739,2]
[352740660,1739283119986,-1151.05,0.00012739,2]
[352740661,1739283119995,-1119.24,0.00012739,2]
[352740662,1739283120005,-500.0,0.00012739,2]
[352740663,1739283120015,-1347.78,0.00012739,2]
[352740664,1739283120024,-819.33,0.00012739,2]
[352740665,1739283120034,-1536.44,0.00012739,2]
[352740666,1739283120044,-892.03,0.00012739,2]
[352740667,1739283120054,-2017.38,0.00012739,2]
[352740668,1739283120063,-948.75,0.00012739,2]
[352740669,1739283120073,-526.05,0.00012739,2]
[352740670,1739283120082,-582.46,0.00012739,2]
[352740671,1739283120095,-683.75,0.00012739,2]
[352740672,1739283120104,-657.71,0.00012739,2]
[352740673,1739283120114,-2105.16,0.00012739,2]
[352740674,1739283120124,-1725.88,0.00012739,2]
[352740675,1739283120134,-615.41526533,0.00012739,2]
[352740676,1739283120144,-634.23,0.00012739,2]
[352740677,1739283120153,-582.27,0.00012739,2]
[352740678,1739283120163,-1375.79,0.00012739,2]
[352740679,1739283120172,-500.0,0.00012739,2]
[352740680,1739283120181,-1848.33,0.00012739,2]
[352740681,1739283120191,-853.65,0.00012739,2]
[352740682,1739283120201,-500.0,0.00012739,2]
[352740683,1739283120210,-1602.84,0.00012739,2]
[352740684,1739283120219,-1126.45,0.00012739,2]
[352740685,1739283120228,-573.29219639,0.00012739,2]
[352740686,1739283120238,-1623.28,0.00012739,2]
[352740687,1739283120248,-1955.0,0.00012739,2]
[352740688,1739283120258,-1095.96,0.00012739,2]
[352740689,1739283120267,-1427.46,0.00012739,2]
[352740690,1739283120277,-733.7,0.00012739,2]
[352740691,1739283120287,-500.0,0.00012739,2]
[352740692,1739283120297,-636.24,0.00012739,2]
[352740693,1739283120306,-1892.51,0.00012739,2]
[352740694,1739283120316,-507.93,0.00012739,2]
[352740695,1739283120326,-500.0,0.00012739,2]
[352740696,1739283120335,-1207.29,0.00012739,2]
[352740697,1739283120347,-1791.03,0.00012739,2]
[352740698,1739283120356,-1757.72,0.00012739,2]
[352740699,1739283120365,-1102.03,0.00012739,2]
[352740700,1739283120375,-500.0,0.00012739,2]
[352740701,1739283120384,-713.64,0.00012739,2]
[352740702,1739283120393,-4488.97,0.00012739,2]
[352740703,1739283120402,-1078.79,0.00012739,2]
[352740704,1739283120412,-1189.98,0.00012739,2]
[352740705,1739283120421,-2171.34,0.00012739,2]
[352740706,1739283120430,-2231.76,0.00012739,2]
[352740707,1739283120440,-3213.91,0.00012739,2]
[352740708,1739283120449,-1985.57,0.00012739,2]
[352740709,1739283120459,-500.0,0.00012739,2]
[352740710,1739283120469,-2233.07,0.00012739,2]
[352740711,1739283120478,-2042.81,0.00012739,2]
[352740712,1739283120488,-1475.61,0.00012739,2]
[352740713,1739283120497,-810.69,0.00012739,2]
[352740714,1739283120506,-607.47682366,0.00012739,2]
[352740715,1739283120515,-2371.13,0.00012739,2]
[352740716,1739283120525,-700.09,0.00012739,2]
[352740717,1739283120535,-1214.76,0.00012739,2]
[352740718,1739283120545,-2171.63,0.00012739,2]
[352740719,1739283120554,-2387.02,0.00012739,2]
[352740720,1739283120563,-620.08,0.00012739,2]
[352740721,1739283120572,-1886.51,0.00012739,2]
[352740722,1739283120581,-5444.75,0.00012739,2]
[352740723,1739283120591,-2340.95,0.00012739,2]
[352740724,1739283120601,-727.8,0.00012739,2]
[352740725,1739283120610,-2886.17,0.00012739,2]
[352740726,1739283120619,-707.04,0.00012739,2]
[352740727,1739283120629,-2310.94,0.00012739,2]
[352740728,1739283120642,-2343.44,0.00012739,2]
[352740729,1739283120651,-937.33,0.00012739,2]
[352740730,1739283120660,-1158.26,0.00012739,2]
[352740731,1739283120670,-670.35,0.00012739,2]
[352740732,1739283120685,-2558.39,0.00012739,2]
[352740733,1739283120695,-592.93305804,0.00012739,2]
[352740734,1739283120703,-620.78,0.00012739,2]
[352740735,1739283120715,-2007.68,0.00012739,2]
[352740736,1739283120724,-2648.76,0.00012739,2]
[352740737,1739283120733,-2171.75,0.00012739,2]
[352740738,1739283120743,-2434.45,0.00012739,2]
[352740739,1739283120752,-731.57,0.00012739,2]
[352740740,1739283120762,-2583.49,0.00012739,2]
[352740741,1739283120771,-2031.5,0.00012739,2]
[352740742,1739283120781,-3062.38,0.00012739,2]
[352740743,1739283120790,-1845.16,0.00012739,2]
[352740744,1739283120799,-3061.99,0.00012739,2]
[352740745,1739283120809,-2068.15,0.00012739,2]
[352740746,1739283120819,-1009.34,0.00012739,2]
[352740747,1739283120829,-2900.54,0.00012739,2]
[352740748,1739283120839,-2626.43,0.00012739,2]
[352740749,1739283120852,-500.0,0.00012739,2]
[352740750,1739283120861,-2213.47,0.00012739,2]
[352740751,1739283120871,-1085.29,0.00012739,2]
[352740752,1739283120880,-2309.34,0.00012739,2]
[352740753,1739283120890,-7282.99,0.00012739,2]
[352740754,1739283120900,-1952.41,0.00012739,2]
[352740755,1739283120909,-701.48,0.00012739,2]
[352740756,1739283120919,-500.0,0.00012739,2]
[352740757,1739283120928,-1931.94,0.00012739,2]
[352740758,1739283120938,-500.0,0.00012739,2]
[352740759,1739283120947,-5326.26,0.00012739,2]
[352740760,1739283120957,-500.0,0.00012739,2]
[352740761,1739283120967,-3327.15,0.00012739,2]
[352740762,1739283120976,-1259.82,0.00012739,2]
[352740763,1739283120985,-500.0,0.00012739,2]
[352740764,1739283120995,-667.96,0.00012739,2]
[352740765,1739283121004,-3450.17,0.00012739,2]
[352740766,1739283121013,-500.0,0.00012739,2]
[352740767,1739283121022,-500.0,0.00012739,2]
[352740768,1739283121032,-1704.66,0.00012739,2]
[352740769,1739283121041,-500.0,0.00012739,2]
[352740770,1739283121051,-500.0,0.00012739,2]
[352740771,1739283121060,-2127.38,0.00012739,2]
[352740772,1739283121070,-1476.79,0.00012739,2]
[352740773,1739283121080,-889.84,0.00012739,2]
[352740774,1739283121089,-1839.16,0.00012739,2]
[352740775,1739283121101,-2565.16,0.00012739,2]
[352740776,1739283121110,-500.0,0.00012739,2]
[352740777,1739283121120,-2467.78,0.00012739,2]
[352740778,1739283121129,-1657.8,0.00012739,2]
[352740779,1739283121138,-683.49,0.00012739,2]
[352740780,1739283121147,-500.0,0.00012739,2]
[352740781,1739283121157,-1036.17,0.00012739,2]
[352740782,1739283121166,-2953.99,0.00012739,2]
[352740783,1739283121176,-500.0,0.00012739,2]
[352740784,1739283121185,-2380.39,0.00012739,2]
[352740785,1739283121195,-1433.77,0.00012739,2]
[352740786,1739283121204,-1071.62,0.00012739,2]
[352740787,1739283121213,-1274.15,0.00012739,2]
[352740788,1739283121223,-500.0,0.00012739,2]
[352740789,1739283121231,-855.01,0.00012739,2]
[352740790,1739283121241,-1027.27,0.00012739,2]
[352740791,1739283121250,-1213.71,0.00012739,2]
[352740792,1739283121259,-2875.82,0.00012739,2]
[352740793,1739283121268,-727.11,0.00012739,2]
[352740794,1739283121278,-713.14,0.00012739,2]
[352740795,1739283121287,-2037.92,0.00012739,2]
[352740796,1739283121296,-2384.33,0.00012739,2]
[352740797,1739283121306,-328.41527795,0.00012753,2]
[352740798,1739283121315,-999.0,0.00012767,2]
[352740799,1739283121324,-999.0,0.00012767,2]
[352740800,1739283121333,-999.0,0.00012767,2]
[352740801,1739283121343,-999.0,0.00012767,2]
[352740802,1739283121352,-999.0,0.00012767,2]
[352740803,1739283121361,-999.0,0.00012767,2]
[352740804,1739283121371,-999.0,0.00012767,2]
[352740805,1739283121381,-999.0,0.00012767,2]
[352740806,1739283121390,-999.0,0.00012767,2]
[352740807,1739283121399,-1009.0,0.00012767,2]
[352740808,1739283121408,-3915.0,0.00012787,4]
[352740809,1739283121418,-1017.149428,0.00012791,2]
[352740810,1739283121428,-1000.0,0.00012791,2]
[352740811,1739283121437,-1000.0,0.00012791,2]
[352740812,1739283121447,-866.48112413,0.00012813,2]
[352740813,1739283121456,-452.87950134,0.00012839,2]
[352740814,1739283121465,-152.0,0.00012857,6]
[352740815,1739283121475,-524.64,0.00012869,2]
[352740816,1739283121484,-1114.15,0.0001287,2]
[352740817,1739283121494,-1907.79,0.0001287,2]
[352740818,1739283121503,-500.0,0.0001287,2]
[352740819,1739283121513,-2042.7,0.0001287,2]
[352740820,1739283121522,-2608.79,0.0001287,2]
[352740821,1739283121532,-500.0,0.00012876,2]
[352740822,1739283121542,-500.0,0.00012876,2]
[352740823,1739283121551,-545.31,0.00012876,2]
[352740824,1739283121561,-623.89,0.00012876,2]
[352740825,1739283121571,-2289.514115,0.00012876,2]
[352740826,1739283121580,-912.071354,0.00012876,2]
[352740827,1739283121589,-562.39,0.00012876,2]
[352740828,1739283121600,-1335.42,0.00012876,2]
[352740829,1739283121610,-500.0,0.00012876,2]
[352740830,1739283121620,-617.95646661,0.00012876,2]
[352740831,1739283121631,-500.0,0.00012876,2]
[352740832,1739283121644,-1026.73,0.00012876,2]
[352740833,1739283121655,-500.0,0.00012876,2]
[352740834,1739283121664,-1291.73,0.00012876,2]
[352740835,1739283121674,-629.1,0.00012876,2]
[352740836,1739283121683,-1006.21,0.00012876,2]
[352740837,1739283121692,-500.0,0.00012876,2]
[352740838,1739283121702,-654.08,0.00012876,2]
[352740839,1739283121713,-429.86388905,0.00012876,2]
[352740840,1739283121722,-500.0,0.00012876,2]
[352740841,1739283121731,-500.0,0.00012876,2]
[352740842,1739283121740,-648.91,0.00012876,2]
[352740843,1739283121749,-829.91,0.00012876,2]
[352740844,1739283121758,-1283.05,0.00012876,2]
[352740845,1739283121767,-627.22,0.00012876,2]
[352740846,1739283121776,-784.62,0.00012876,2]
[352740847,1739283121785,-500.0,0.00012876,2]
[352740848,1739283121794,-500.0,0.00012876,2]
[352740849,1739283121803,-1049.93,0.00012876,2]
[352740850,1739283121812,-500.0,0.00012876,2]
[352740851,1739283121820,-656.24,0.00012876,2]
[352740852,1739283121829,-500.0,0.00012876,2]
[352740853,1739283121839,-717.49,0.00012876,2]
[352740854,1739283121850,-750.73,0.00012876,2]
[352740855,1739283121860,-899.58,0.00012876,2]
[352740856,1739283121869,-500.0,0.00012876,2]
[352740857,1739283121879,-951.35,0.00012876,2]
[352740858,1739283121888,-500.0,0.00012876,2]
[352740859,1739283121898,-1059.29,0.00012876,2]
[352740860,1739283121908,-1079.43,0.00012876,2]
[352740861,1739283121918,-771.17,0.00012876,2]
[352740862,1739283121927,-438.09600772,0.00012876,2]
[352740863,1739283121937,-621.59,0.00012876,2]
[352740864,1739283121946,-500.0,0.00012876,2]
[352740865,1739283121956,-500.0,0.00012876,2]
[352740866,1739283121966,-772.38,0.00012876,2]
[352740867,1739283121976,-637.38,0.00012876,2]
[352740868,1739283121986,-564.18,0.00012876,2]
[352740869,1739283121996,-500.0,0.00012876,2]
[352740870,1739283122006,-562.5,0.00012876,2]
[352740871,1739283122016,-726.26,0.00012876,2]
[352740872,1739283122026,-500.0,0.00012876,2]
[352740873,1739283122035,-500.0,0.00012876,2]
[352740874,1739283122045,-657.71,0.00012876,2]
[352740875,1739283122055,-545.49,0.00012876,2]
[352740876,1739283122065,-947.55,0.00012876,2]
[352740877,1739283122074,-500.0,0.00012876,2]
[352740878,1739283122084,-500.0,0.00012876,2]
[352740879,1739283122096,-483.91612315,0.00012876,2]
[352740880,1739283122106,-500.0,0.00012876,2]
[352740881,1739283122115,-791.02,0.00012876,2]
[352740882,1739283122125,-594.78,0.00012876,2]
[352740883,1739283122135,-899.13,0.00012876,2]
[352740884,1739283122145,-723.56,0.00012876,2]
[352740885,1739283122154,-623.3,0.00012876,2]
[352740886,1739283122164,-500.0,0.00012876,2]
[352740887,1739283122173,-602.04,0.00012876,2]
[352740888,1739283122183,-634.43,0.00012876,2]
[352740889,1739283122193,-500.0,0.00012876,2]
[352740890,1739283122203,-689.47,0.00012876,2]
[352740891,1739283122213,-500.0,0.00012876,2]
[352740892,1739283122222,-500.0,0.00012876,2]
[352740893,1739283122232,-500.0,0.00012876,2]
[352740894,1739283122241,-500.0,0.00012876,2]
[352740895,1739283122251,-2000.0,0.00012876,2]
[352740896,1739283122260,-999.07,0.00012876,2]
[352740897,1739283122269,-961.83,0.00012876,2]
[352740898,1739283122279,-932.98,0.00012876,2]
[352740899,1739283122288,-500.0,0.00012876,2]
[352740900,1739283122298,-662.81,0.00012876,2]
[352740901,1739283122307,-541.66,0.00012876,2]
[352740902,1739283122316,-722.67,0.00012876,2]
[352740903,1739283122326,-500.0,0.00012876,2]
[352740904,1739283122335,-165.29,0.00012876,2]
[352740905,1739283122345,-500.0,0.00012876,2]
[352740906,1739283122354,-500.0,0.00012876,2]
[352740907,1739283122363,-1030.45,0.00012876,2]
[352740908,1739283122373,-835.87,0.00012876,2]
[352740909,1739283122383,-750.85,0.00012876,2]
[352740910,1739283122393,-500.0,0.00012876,2]
[352740911,1739283122402,-500.0,0.00012876,2]
[352740912,1739283122412,-412.20212571,0.00012876,2]
[352740913,1739283122421,-500.0,0.00012876,2]
[352740914,1739283122431,-500.0,0.00012876,2]